[Event "7th Paul Keres Memorial Festival 2026 Rapid"]
[Site "ESTONIA Resort Hotel & Spa conference center, EE"]
[Date "2026.08.02"]
[Round "1"]
[White "Barbsys, Skirmantas"]
[Black "Harikrishnan.A.Ra"]
[Result "0-1"]
[Board "7"]
[TimeControl "12+3"]
[WhiteFideId "12861812"]
[BlackFideId "5081483"]
[WhiteElo "1855"]
[BlackElo "2404"]
[BlackTitle "GM"]
[WhiteClock "0:02:12"]
[BlackClock "0:05:38"]
[Variant "Standard"]
[EndDate "2026.08.02"]
[EndTime "07:52:17"]

1. d4 {[%clk 0:12:04]}  Nf6 {[%clk 0:12:02]} 2. c4 {[%clk 0:12:05]}  e6 {[%clk 0:12:03]} 3. Nc3 {[%clk 0:12:05]}  Bb4 {[%clk 0:12:04]}
4. e3 {[%clk 0:12:07]}  O-O {[%clk 0:12:04]} 5. Bd3 {[%clk 0:12:05]}  Bxc3+ {[%clk 0:11:58]} 6. bxc3 {[%clk 0:12:07]}  d6 {[%clk 0:12:00]}
7. e4 {[%clk 0:11:58]}  e5 {[%clk 0:12:02]} 8. d5 {[%clk 0:12:00]}  Nbd7 {[%clk 0:11:59]} 9. f3 {[%clk 0:11:34]}  Nc5 {[%clk 0:12:00]}
10. Bc2 {[%clk 0:11:36]}  Nh5 {[%clk 0:11:57]} 11. Ne2 {[%clk 0:11:04]}  f5 {[%clk 0:11:56]} 12. O-O {[%clk 0:10:20]}  f4 {[%clk 0:11:44]}
13. Qe1 {[%clk 0:09:55]}  Rf6 {[%clk 0:11:36]} 14. g3 {[%clk 0:09:35]}  Rg6 {[%clk 0:11:36]} 15. g4 {[%clk 0:09:27]}  Nf6 {[%clk 0:11:32]}
16. h3 {[%clk 0:09:21]}  h5 {[%clk 0:11:30]} 17. Nxf4 {[%clk 0:07:36]}  exf4 {[%clk 0:11:31]} 18. e5 {[%clk 0:07:38]}  Nfd7 {[%clk 0:10:55]}
19. Bxg6 {[%clk 0:07:10]}  Nxe5 {[%clk 0:10:56]} 20. Be4 {[%clk 0:06:45]}  hxg4 {[%clk 0:10:45]} 21. Bxf4 {[%clk 0:06:27]}  Nxe4 {[%clk 0:07:43]}
22. Qxe4 {[%clk 0:05:24]}  gxf3 {[%clk 0:07:32]} 23. Bxe5 {[%clk 0:03:49]}  Qg5+ {[%clk 0:07:29]} 24. Kf2 {[%clk 0:03:50]}  Qg2+ {[%clk 0:07:31]}
25. Ke3 {[%clk 0:03:48]}  Qe2+ {[%clk 0:05:35]} 26. Kf4 {[%clk 0:02:22]}  g5+ {[%clk 0:05:36]} 27. Kxg5 {[%clk 0:02:12]}  Qxe4 {[%clk 0:05:38]} 0-1

[Event "7th Paul Keres Memorial Festival 2026 Rapid"]
[Site "ESTONIA Resort Hotel & Spa conference center, EE"]
[Date "2026.08.02"]
[Round "1"]
[White "Mayorau, Mikita"]
[Black "Lusts, Ricards Martins"]
[Result "1-0"]
[Board "8"]
[TimeControl "12+3"]
[WhiteFideId "13501720"]
[BlackFideId "11625430"]
[WhiteElo "2392"]
[BlackElo "1711"]
[WhiteTitle "GM"]
[WhiteClock "0:05:05"]
[BlackClock "0:01:37"]
[Variant "Standard"]
[EndDate "2026.08.02"]
[EndTime "07:53:27"]

1. d4 {[%clk 0:12:01]}  f5 {[%clk 0:12:00]} 2. c4 {[%clk 0:12:01]}  Nf6 {[%clk 0:12:01]} 3. g3 {[%clk 0:12:02]}  e6 {[%clk 0:12:01]}
4. Bg2 {[%clk 0:12:04]}  Bb4+ {[%clk 0:11:55]} 5. Nd2 {[%clk 0:12:01]}  Nc6 {[%clk 0:11:50]} 6. Ngf3 {[%clk 0:12:02]}  b6 {[%clk 0:11:39]}
7. O-O {[%clk 0:11:43]}  Bxd2 {[%clk 0:11:02]} 8. Qxd2 {[%clk 0:11:31]}  Ne4 {[%clk 0:11:02]} 9. Qd1 {[%clk 0:11:20]}  O-O {[%clk 0:10:59]}
10. b3 {[%clk 0:11:00]}  Bb7 {[%clk 0:10:46]} 11. Bb2 {[%clk 0:11:01]}  Qe8 {[%clk 0:09:51]} 12. Ne1 {[%clk 0:10:09]}  Qg6 {[%clk 0:08:28]}
13. f3 {[%clk 0:09:35]}  Nf6 {[%clk 0:08:13]} 14. Nd3 {[%clk 0:09:34]}  Nh5 {[%clk 0:07:56]} 15. Qd2 {[%clk 0:09:17]}  d6 {[%clk 0:07:16]}
16. e3 {[%clk 0:08:44]}  Ne7 {[%clk 0:07:05]} 17. Rfe1 {[%clk 0:08:11]}  Qh6 {[%clk 0:05:34]} 18. Qe2 {[%clk 0:07:44]}  Nf6 {[%clk 0:04:57]}
19. e4 {[%clk 0:07:03]}  fxe4 {[%clk 0:04:49]} 20. fxe4 {[%clk 0:07:04]}  Nd7 {[%clk 0:04:30]} 21. Bc1 {[%clk 0:06:54]}  Qf6 {[%clk 0:04:15]}
22. e5 {[%clk 0:06:50]}  dxe5 {[%clk 0:03:34]} 23. Bxb7 {[%clk 0:06:49]}  Rab8 {[%clk 0:03:36]} 24. Bg2 {[%clk 0:06:41]}  Nf5 {[%clk 0:02:43]}
25. dxe5 {[%clk 0:06:33]}  Qe7 {[%clk 0:02:35]} 26. Bb2 {[%clk 0:06:30]}  Rbd8 {[%clk 0:02:24]} 27. Rad1 {[%clk 0:05:47]}  Nc5 {[%clk 0:02:26]}
28. Nb4 {[%clk 0:05:25]}  Qf7 {[%clk 0:01:59]} 29. Nc6 {[%clk 0:05:14]}  Rxd1 {[%clk 0:01:49]} 30. Rxd1 {[%clk 0:05:15]}  a5 {[%clk 0:01:37]}
31. Ba3 {[%clk 0:05:05]} 1-0

[Event "7th Paul Keres Memorial Festival 2026 Rapid"]
[Site "ESTONIA Resort Hotel & Spa conference center, EE"]
[Date "2026.08.02"]
[Round "1"]
[White "Le Doan, Duy Thuc"]
[Black "Jakubowski, Krzysztof"]
[Result "0-1"]
[Board "9"]
[TimeControl "12+3"]
[WhiteFideId "1781375"]
[BlackFideId "1112848"]
[WhiteElo "1696"]
[BlackElo "2365"]
[BlackTitle "GM"]
[WhiteClock "0:03:33"]
[BlackClock "0:04:36"]
[Variant "Standard"]
[EndDate "2026.08.02"]
[EndTime "07:52:40"]

1. e4 {[%clk 1:30:50]}  c5 {[%clk 1:30:36]} 2. Nf3 {[%clk 1:30:50]}  e6 {[%clk 1:30:05]} 3. d4 {[%clk 1:28:58]}  cxd4 {[%clk 1:29:18]}
4. Qxd4 {[%clk 1:29:21]}  a6 {[%clk 1:30:05]} 5. Nc3 {[%clk 0:11:33]}  b5 {[%clk 0:11:51]} 6. a3 {[%clk 0:11:05]}  Bb7 {[%clk 0:11:45]}
7. Bf4 {[%clk 0:10:47]}  Nf6 {[%clk 0:11:38]} 8. Bd3 {[%clk 0:09:46]}  Nc6 {[%clk 0:10:42]} 9. Qe3 {[%clk 0:09:47]}  Na5 {[%clk 0:10:42]}
10. O-O {[%clk 0:08:24]}  Rc8 {[%clk 0:09:23]} 11. Bg5 {[%clk 0:07:19]}  Qc7 {[%clk 0:08:45]} 12. Bf4 {[%clk 0:07:09]}  d6 {[%clk 0:07:04]}
13. Bg5 {[%clk 0:07:05]}  Be7 {[%clk 0:06:34]} 14. h3 {[%clk 0:06:50]}  O-O {[%clk 0:06:34]} 15. Rad1 {[%clk 0:06:43]}  e5 {[%clk 0:05:11]}
16. Rfe1 {[%clk 0:06:16]}  h6 {[%clk 0:05:11]} 17. Bxf6 {[%clk 0:06:06]}  Bxf6 {[%clk 0:05:12]} 18. Qe2 {[%clk 0:05:57]}  Rfe8 {[%clk 0:05:03]}
19. Qf1 {[%clk 0:05:32]}  Qb6 {[%clk 0:05:04]} 20. Ne2 {[%clk 0:05:17]}  Nc4 {[%clk 0:05:00]} 21. b3 {[%clk 0:05:14]}  Nxa3 {[%clk 0:05:00]}
22. Rc1 {[%clk 0:05:05]}  d5 {[%clk 0:04:58]} 23. Ng3 {[%clk 0:05:00]}  g6 {[%clk 0:04:54]} 24. exd5 {[%clk 0:04:45]}  Bxd5 {[%clk 0:04:55]}
25. Ne4 {[%clk 0:04:44]}  Bg7 {[%clk 0:04:57]} 26. Qe2 {[%clk 0:04:41]}  f5 {[%clk 0:04:57]} 27. Ra1 {[%clk 0:04:11]}  fxe4 {[%clk 0:04:54]}
28. Rxa3 {[%clk 0:03:57]}  exd3 {[%clk 0:04:49]} 29. Qxd3 {[%clk 0:03:56]}  Bb7 {[%clk 0:04:46]} 30. Nh2 {[%clk 0:03:44]}  e4 {[%clk 0:04:38]}
31. Qe2 {[%clk 0:03:40]}  e3 {[%clk 0:04:36]} 32. fxe3 {[%clk 0:03:33]}  Rxe3 {[%clk 0:04:36]} 0-1

[Event "7th Paul Keres Memorial Festival 2026 Rapid"]
[Site "ESTONIA Resort Hotel & Spa conference center, EE"]
[Date "2026.08.02"]
[Round "1"]
[White "Maltsevskaya, Aleksandra"]
[Black "Zafra, Kim"]
[Result "1-0"]
[Board "10"]
[TimeControl "12+3"]
[WhiteFideId "24174041"]
[BlackFideId "5267080"]
[WhiteElo "2369"]
[BlackElo "1783"]
[WhiteTitle "IM"]
[WhiteClock "0:02:12"]
[BlackClock "0:02:30"]
[Variant "Standard"]
[EndDate "2026.08.02"]
[EndTime "07:55:38"]

1. e4 {[%clk 0:12:05]}  d6 {[%clk 0:12:05]} 2. d4 {[%clk 0:12:06]}  Nf6 {[%clk 0:12:07]} 3. Bd3 {[%clk 0:12:07]}  g6 {[%clk 0:12:01]}
4. Nf3 {[%clk 0:12:08]}  Bg4 {[%clk 0:11:59]} 5. c3 {[%clk 0:12:08]}  Bg7 {[%clk 0:11:44]} 6. O-O {[%clk 0:12:08]}  O-O {[%clk 0:11:44]}
7. h3 {[%clk 0:12:09]}  Bxf3 {[%clk 0:11:45]} 8. Qxf3 {[%clk 0:12:09]}  Nc6 {[%clk 0:11:39]} 9. b4 {[%clk 0:11:52]}  a6 {[%clk 0:11:37]}
10. Bd2 {[%clk 0:11:46]}  e5 {[%clk 0:11:30]} 11. d5 {[%clk 0:11:47]}  Ne7 {[%clk 0:11:32]} 12. c4 {[%clk 0:11:48]}  Nd7 {[%clk 0:11:27]}
13. Nc3 {[%clk 0:11:42]}  f5 {[%clk 0:10:57]} 14. Rac1 {[%clk 0:11:30]}  b6 {[%clk 0:09:59]} 15. Bg5 {[%clk 0:11:29]}  Bf6 {[%clk 0:09:13]}
16. Bxf6 {[%clk 0:10:55]}  Rxf6 {[%clk 0:09:14]} 17. Qd1 {[%clk 0:10:05]}  f4 {[%clk 0:09:03]} 18. Na4 {[%clk 0:10:01]}  f3 {[%clk 0:08:50]}
19. g3 {[%clk 0:09:57]}  a5 {[%clk 0:07:54]} 20. a3 {[%clk 0:09:55]}  axb4 {[%clk 0:07:31]} 21. axb4 {[%clk 0:09:56]}  Nc5 {[%clk 0:07:27]}
22. bxc5 {[%clk 0:09:52]}  Qd7 {[%clk 0:07:26]} 23. Kh2 {[%clk 0:07:57]}  g5 {[%clk 0:07:23]} 24. c6 {[%clk 0:07:40]}  Qc8 {[%clk 0:06:38]}
25. Rh1 {[%clk 0:07:32]}  Rh6 {[%clk 0:04:12]} 26. Bf1 {[%clk 0:06:21]}  Ng6 {[%clk 0:03:58]} 27. Ra1 {[%clk 0:04:55]}  Nf4 {[%clk 0:02:54]}
28. gxf4 {[%clk 0:06:01]}  Qg4 {[%clk 0:02:56]} 29. Qd2 {[%clk 0:05:23]}  exf4 {[%clk 0:02:26]} 30. Ra2 {[%clk 0:03:22]}  Kh8 {[%clk 0:02:27]}
31. Nxb6 {[%clk 0:02:15]}  Rg8 {[%clk 0:02:27]} 32. Qd4+ {[%clk 0:02:11]}  Rg7 {[%clk 0:02:30]} 33. Ra8+ {[%clk 0:02:12]} 1-0

[Event "7th Paul Keres Memorial Festival 2026 Rapid"]
[Site "ESTONIA Resort Hotel & Spa conference center, EE"]
[Date "2026.08.02"]
[Round "2"]
[White "Shirov, Alexei"]
[Black "Jakubowska, Anna"]
[Result "1-0"]
[Board "1"]
[TimeControl "12+3"]
[WhiteFideId "2209390"]
[BlackFideId "1121952"]
[WhiteElo "2616"]
[BlackElo "2046"]
[WhiteTitle "GM"]
[BlackTitle "WIM"]
[WhiteClock "0:00:21"]
[BlackClock "0:00:33"]
[Variant "Standard"]
[EndDate "2026.08.02"]
[EndTime "08:37:54"]

1. d4 {[%clk 0:12:04]}  f5 {[%clk 0:11:58]} 2. g3 {[%clk 0:11:54]}  g6 {[%clk 0:11:55]} 3. Bg2 {[%clk 0:11:48]}  Nf6 {[%clk 0:11:53]}
4. Nf3 {[%clk 0:11:29]}  Bg7 {[%clk 0:11:53]} 5. b4 {[%clk 0:11:13]}  O-O {[%clk 0:11:42]} 6. Bb2 {[%clk 0:11:09]}  a5 {[%clk 0:10:37]}
7. b5 {[%clk 0:11:07]}  b6 {[%clk 0:09:33]} 8. Ne5 {[%clk 0:10:52]}  Ra7 {[%clk 0:09:05]} 9. c4 {[%clk 0:10:27]}  d6 {[%clk 0:06:57]}
10. Nd3 {[%clk 0:10:15]}  Bb7 {[%clk 0:05:51]} 11. Bxb7 {[%clk 0:10:01]}  Rxb7 {[%clk 0:05:52]} 12. d5 {[%clk 0:10:01]}  e5 {[%clk 0:05:16]}
13. dxe6 {[%clk 0:10:01]}  Qe7 {[%clk 0:05:17]} 14. Nf4 {[%clk 0:09:34]}  g5 {[%clk 0:05:13]} 15. Nd5 {[%clk 0:09:19]}  Qxe6 {[%clk 0:05:13]}
16. Bxf6 {[%clk 0:04:41]}  Bxf6 {[%clk 0:05:07]} 17. Nxf6+ {[%clk 0:04:42]}  Rxf6 {[%clk 0:05:06]} 18. Nc3 {[%clk 0:04:44]}  Nd7 {[%clk 0:04:41]}
19. h4 {[%clk 0:04:23]}  g4 {[%clk 0:04:30]} 20. Nd5 {[%clk 0:04:15]}  Rf7 {[%clk 0:04:24]} 21. O-O {[%clk 0:03:54]}  Ne5 {[%clk 0:04:11]}
22. Rc1 {[%clk 0:03:14]}  Rb8 {[%clk 0:04:11]} 23. f4 {[%clk 0:02:32]}  gxf3 {[%clk 0:04:09]} 24. exf3 {[%clk 0:02:34]}  Rg7 {[%clk 0:04:08]}
25. Kh2 {[%clk 0:02:23]}  Rf8 {[%clk 0:03:26]} 26. Rc2 {[%clk 0:01:57]}  f4 {[%clk 0:03:03]} 27. Nxf4 {[%clk 0:01:37]}  Rxf4 {[%clk 0:02:29]}
28. gxf4 {[%clk 0:01:38]}  Qh6 {[%clk 0:02:28]} 29. Rg2 {[%clk 0:01:25]}  Qxf4+ {[%clk 0:02:01]} 30. Kg1 {[%clk 0:01:20]}  Rxg2+ {[%clk 0:01:20]}
31. Kxg2 {[%clk 0:01:21]}  Qxc4 {[%clk 0:01:21]} 32. Qb3 {[%clk 0:01:04]}  d5 {[%clk 0:01:16]} 33. Qxc4 {[%clk 0:01:03]}  Nxc4 {[%clk 0:01:17]}
34. Kf2 {[%clk 0:00:38]}  Kf7 {[%clk 0:01:17]} 35. Rc1 {[%clk 0:00:21]}  Ke6 {[%clk 0:01:14]} 36. Ke2 {[%clk 0:00:22]}  Kd6 {[%clk 0:01:08]}
37. f4 {[%clk 0:00:17]}  Na3 {[%clk 0:01:02]} 38. Rc6+ {[%clk 0:00:19]}  Kd7 {[%clk 0:01:04]} 39. Rh6 {[%clk 0:00:19]}  Nxb5 {[%clk 0:01:04]}
40. Rxh7+ {[%clk 0:00:21]}  Ke6 {[%clk 0:01:03]} 41. Kd2 {[%clk 0:00:16]}  Kf5 {[%clk 0:00:40]} 42. h5 {[%clk 0:00:17]}  Kxf4 {[%clk 0:00:34]}
43. Rg7 {[%clk 0:00:19]}  Nd6 {[%clk 0:00:33]} 44. h6 {[%clk 0:00:21]} 1-0

[Event "7th Paul Keres Memorial Festival 2026 Rapid"]
[Site "ESTONIA Resort Hotel & Spa conference center, EE"]
[Date "2026.08.02"]
[Round "2"]
[White "Puusepp, Kaimar"]
[Black "Lagarde, Maxime"]
[Result "0-1"]
[Board "2"]
[TimeControl "12+3"]
[WhiteFideId "4502760"]
[BlackFideId "662399"]
[WhiteElo "2031"]
[BlackElo "2599"]
[WhiteTitle "CM"]
[BlackTitle "GM"]
[WhiteClock "0:06:06"]
[BlackClock "0:05:29"]
[Variant "Standard"]
[EndDate "2026.08.02"]
[EndTime "08:25:55"]

1. c4 {[%clk 0:12:05]}  Nf6 {[%clk 0:12:05]} 2. Nf3 {[%clk 0:12:07]}  g6 {[%clk 0:12:07]} 3. Nc3 {[%clk 0:12:09]}  Bg7 {[%clk 0:12:09]}
4. d4 {[%clk 0:12:11]}  O-O {[%clk 0:12:10]} 5. e4 {[%clk 0:12:13]}  d6 {[%clk 0:12:12]} 6. Be2 {[%clk 0:12:15]}  Nbd7 {[%clk 0:12:08]}
7. O-O {[%clk 0:12:16]}  e5 {[%clk 0:12:10]} 8. Be3 {[%clk 0:12:18]}  Qe7 {[%clk 0:12:11]} 9. dxe5 {[%clk 0:12:03]}  dxe5 {[%clk 0:12:10]}
10. Nd5 {[%clk 0:11:47]}  Qd8 {[%clk 0:12:12]} 11. Qc2 {[%clk 0:11:16]}  c6 {[%clk 0:12:10]} 12. Nxf6+ {[%clk 0:11:15]}  Bxf6 {[%clk 0:11:56]}
13. c5 {[%clk 0:11:16]}  Qe7 {[%clk 0:11:21]} 14. b4 {[%clk 0:11:17]}  Rd8 {[%clk 0:10:53]} 15. Nd2 {[%clk 0:11:19]}  Bg5 {[%clk 0:10:43]}
16. Nc4 {[%clk 0:11:17]}  Bxe3 {[%clk 0:10:41]} 17. fxe3 {[%clk 0:11:05]}  Nf6 {[%clk 0:10:30]} 18. Qb2 {[%clk 0:09:54]}  Nxe4 {[%clk 0:10:09]}
19. Qxe5 {[%clk 0:09:53]}  Qxe5 {[%clk 0:10:07]} 20. Nxe5 {[%clk 0:09:55]}  Be6 {[%clk 0:09:56]} 21. Bc4 {[%clk 0:09:22]}  Bxc4 {[%clk 0:09:48]}
22. Nxc4 {[%clk 0:09:24]}  Nd2 {[%clk 0:08:34]} 23. Nxd2 {[%clk 0:09:02]}  Rxd2 {[%clk 0:08:35]} 24. Rf2 {[%clk 0:08:27]}  Rxf2 {[%clk 0:06:44]}
25. Kxf2 {[%clk 0:08:29]}  a5 {[%clk 0:06:47]} 26. Rb1 {[%clk 0:08:11]}  axb4 {[%clk 0:06:48]} 27. Rxb4 {[%clk 0:08:13]}  Rxa2+ {[%clk 0:06:49]}
28. Kf3 {[%clk 0:08:16]}  Rc2 {[%clk 0:06:47]} 29. Rxb7 {[%clk 0:08:16]}  Rxc5 {[%clk 0:06:48]} 30. Rc7 {[%clk 0:08:05]}  h5 {[%clk 0:06:42]}
31. h4 {[%clk 0:07:57]}  Rc1 {[%clk 0:06:22]} 32. g4 {[%clk 0:06:58]}  hxg4+ {[%clk 0:06:19]} 33. Kxg4 {[%clk 0:07:01]}  Kg7 {[%clk 0:05:55]}
34. Kg5 {[%clk 0:06:21]}  Rc4 {[%clk 0:05:35]} 35. e4 {[%clk 0:06:06]}  Rxe4 {[%clk 0:05:29]} 0-1

[Event "7th Paul Keres Memorial Festival 2026 Rapid"]
[Site "ESTONIA Resort Hotel & Spa conference center, EE"]
[Date "2026.08.02"]
[Round "2"]
[White "Fridman, Daniel"]
[Black "Voropaiev, Illia"]
[Result "1-0"]
[Board "3"]
[TimeControl "12+3"]
[WhiteFideId "11600454"]
[BlackFideId "34175083"]
[WhiteElo "2555"]
[BlackElo "1978"]
[WhiteTitle "GM"]
[WhiteClock "0:01:40"]
[BlackClock "0:00:36"]
[Variant "Standard"]
[EndDate "2026.08.02"]
[EndTime "08:36:18"]

1. d4 {[%clk 0:09:56]}  Nf6 {[%clk 0:12:02]} 2. Nf3 {[%clk 0:09:56]}  g6 {[%clk 0:11:58]} 3. g3 {[%clk 0:09:56]}  Bg7 {[%clk 0:11:56]}
4. c4 {[%clk 0:09:57]}  O-O {[%clk 0:11:52]} 5. Bg2 {[%clk 0:09:58]}  d6 {[%clk 0:11:46]} 6. Nc3 {[%clk 0:09:59]}  Nbd7 {[%clk 0:11:42]}
7. O-O {[%clk 0:09:59]}  e5 {[%clk 0:11:38]} 8. e4 {[%clk 0:09:58]}  Re8 {[%clk 0:11:33]} 9. h3 {[%clk 0:09:51]}  exd4 {[%clk 0:11:29]}
10. Nxd4 {[%clk 0:09:51]}  Nc5 {[%clk 0:11:21]} 11. Re1 {[%clk 0:09:51]}  a5 {[%clk 0:11:16]} 12. Ndb5 {[%clk 0:09:44]}  Nfd7 {[%clk 0:10:28]}
13. Be3 {[%clk 0:07:02]}  Rb8 {[%clk 0:09:09]} 14. Rc1 {[%clk 0:06:37]}  b6 {[%clk 0:08:54]} 15. f4 {[%clk 0:06:09]}  Bb7 {[%clk 0:08:47]}
16. Bf2 {[%clk 0:05:56]}  Nf6 {[%clk 0:06:54]} 17. Qc2 {[%clk 0:05:54]}  c6 {[%clk 0:03:58]} 18. Nd4 {[%clk 0:05:55]}  Qc7 {[%clk 0:04:01]}
19. a3 {[%clk 0:05:40]}  Nfd7 {[%clk 0:03:40]} 20. b4 {[%clk 0:05:35]}  Ne6 {[%clk 0:03:35]} 21. Qd2 {[%clk 0:05:18]}  Ndf8 {[%clk 0:03:19]}
22. Nb3 {[%clk 0:04:46]}  axb4 {[%clk 0:03:12]} 23. axb4 {[%clk 0:04:47]}  Ra8 {[%clk 0:03:13]} 24. Red1 {[%clk 0:04:10]}  Red8 {[%clk 0:03:02]}
25. f5 {[%clk 0:04:08]}  Bxc3 {[%clk 0:02:57]} 26. Rxc3 {[%clk 0:03:44]}  Ng7 {[%clk 0:02:58]} 27. Nd4 {[%clk 0:03:34]}  Ra4 {[%clk 0:02:49]}
28. Rd3 {[%clk 0:03:12]}  Qe7 {[%clk 0:02:39]} 29. g4 {[%clk 0:03:03]}  Nd7 {[%clk 0:02:34]} 30. Nf3 {[%clk 0:02:37]}  d5 {[%clk 0:01:54]}
31. exd5 {[%clk 0:02:17]}  cxd5 {[%clk 0:01:56]} 32. Qh6 {[%clk 0:01:54]}  gxf5 {[%clk 0:00:43]} 33. Ng5 {[%clk 0:01:54]}  Nf8 {[%clk 0:00:43]}
34. Bd4 {[%clk 0:01:54]}  f6 {[%clk 0:00:45]} 35. Bxf6 {[%clk 0:01:54]}  Qc7 {[%clk 0:00:36]} 36. Bxd8 {[%clk 0:01:45]}  Qxd8 {[%clk 0:00:36]}
37. Rxd5 {[%clk 0:01:40]} 1-0

[Event "7th Paul Keres Memorial Festival 2026 Rapid"]
[Site "ESTONIA Resort Hotel & Spa conference center, EE"]
[Date "2026.08.02"]
[Round "2"]
[White "Mironov, Ruslan"]
[Black "Laurusas, Tomas"]
[Result "0-1"]
[Board "4"]
[TimeControl "12+3"]
[WhiteFideId "4500431"]
[BlackFideId "12803731"]
[WhiteElo "2062"]
[BlackElo "2462"]
[BlackTitle "GM"]
[WhiteClock "0:01:28"]
[BlackClock "0:09:53"]
[Variant "Standard"]
[EndDate "2026.08.02"]
[EndTime "08:25:36"]

1. e4 {[%clk 0:12:04]}  c6 {[%clk 0:12:04]} 2. d4 {[%clk 0:12:04]}  d5 {[%clk 0:12:06]} 3. exd5 {[%clk 0:12:05]}  cxd5 {[%clk 0:12:07]}
4. Bd3 {[%clk 0:12:03]}  Nf6 {[%clk 0:12:05]} 5. h3 {[%clk 0:12:03]}  Nc6 {[%clk 0:12:02]} 6. c3 {[%clk 0:12:04]}  Qc7 {[%clk 0:12:01]}
7. Nf3 {[%clk 0:11:56]}  g6 {[%clk 0:11:40]} 8. O-O {[%clk 0:11:41]}  Bf5 {[%clk 0:11:41]} 9. Be2 {[%clk 0:11:42]}  Bg7 {[%clk 0:11:39]}
10. Be3 {[%clk 0:11:30]}  O-O {[%clk 0:11:39]} 11. Nbd2 {[%clk 0:11:32]}  Rad8 {[%clk 0:11:41]} 12. Qc1 {[%clk 0:11:27]}  Rfe8 {[%clk 0:11:40]}
13. Nb3 {[%clk 0:10:56]}  Ne4 {[%clk 0:11:41]} 14. Bf4 {[%clk 0:10:07]}  Qb6 {[%clk 0:11:43]} 15. g4 {[%clk 0:08:58]}  Bd7 {[%clk 0:11:30]}
16. Bh6 {[%clk 0:08:57]}  Bh8 {[%clk 0:11:25]} 17. Ng5 {[%clk 0:08:02]}  Nd6 {[%clk 0:11:11]} 18. Nc5 {[%clk 0:07:31]}  Bc8 {[%clk 0:11:13]}
19. b4 {[%clk 0:07:31]}  e5 {[%clk 0:11:07]} 20. Bf3 {[%clk 0:07:20]}  e4 {[%clk 0:10:41]} 21. Be2 {[%clk 0:07:03]}  f6 {[%clk 0:10:42]}
22. a4 {[%clk 0:06:37]}  fxg5 {[%clk 0:10:41]} 23. a5 {[%clk 0:06:33]}  Qc7 {[%clk 0:10:42]} 24. Bxg5 {[%clk 0:06:18]}  Nf7 {[%clk 0:10:41]}
25. Bxd8 {[%clk 0:05:48]}  Qxd8 {[%clk 0:10:41]} 26. Bd1 {[%clk 0:05:15]}  Qh4 {[%clk 0:10:32]} 27. Qf4 {[%clk 0:01:34]}  Ng5 {[%clk 0:10:13]}
28. Qg3 {[%clk 0:01:30]}  Qxh3 {[%clk 0:09:52]} 29. Bb3 {[%clk 0:01:28]}  Nf3+ {[%clk 0:09:53]} 0-1

[Event "7th Paul Keres Memorial Festival 2026 Rapid"]
[Site "ESTONIA Resort Hotel & Spa conference center, EE"]
[Date "2026.08.02"]
[Round "2"]
[White "Keinanen, Toivo"]
[Black "Pakalns, Raivis Kristians"]
[Result "1-0"]
[Board "5"]
[TimeControl "12+3"]
[WhiteFideId "509825"]
[BlackFideId "11607483"]
[WhiteElo "2585"]
[BlackElo "1995"]
[WhiteTitle "IM"]
[WhiteClock "0:06:43"]
[BlackClock "0:03:21"]
[Variant "Standard"]
[EndDate "2026.08.02"]
[EndTime "08:27:20"]

1. d4 {[%clk 0:12:02]}  g6 {[%clk 0:12:05]} 2. e4 {[%clk 0:11:54]}  Bg7 {[%clk 0:12:06]} 3. Nf3 {[%clk 0:11:49]}  d6 {[%clk 0:11:57]}
4. Bc4 {[%clk 0:11:50]}  e6 {[%clk 0:11:53]} 5. O-O {[%clk 0:11:12]}  Ne7 {[%clk 0:11:38]} 6. a4 {[%clk 0:10:56]}  O-O {[%clk 0:11:08]}
7. c3 {[%clk 0:10:51]}  b6 {[%clk 0:10:29]} 8. a5 {[%clk 0:10:50]}  Bb7 {[%clk 0:09:46]} 9. Qe2 {[%clk 0:10:45]}  d5 {[%clk 0:09:37]}
10. exd5 {[%clk 0:10:44]}  Nxd5 {[%clk 0:09:30]} 11. a6 {[%clk 0:10:41]}  Bc8 {[%clk 0:09:08]} 12. Bg5 {[%clk 0:10:09]}  Qd6 {[%clk 0:08:39]}
13. Nbd2 {[%clk 0:10:04]}  c6 {[%clk 0:08:13]} 14. Ne4 {[%clk 0:10:02]}  Qc7 {[%clk 0:08:12]} 15. Qd2 {[%clk 0:09:14]}  Nd7 {[%clk 0:07:52]}
16. Bh6 {[%clk 0:09:04]}  b5 {[%clk 0:07:38]} 17. Bd3 {[%clk 0:08:50]}  Rb8 {[%clk 0:07:14]} 18. b3 {[%clk 0:08:34]}  N5f6 {[%clk 0:06:35]}
19. Nxf6+ {[%clk 0:08:20]}  Bxf6 {[%clk 0:06:15]} 20. Bxf8 {[%clk 0:08:20]}  Kxf8 {[%clk 0:06:17]} 21. Qh6+ {[%clk 0:07:58]}  Kg8 {[%clk 0:06:10]}
22. Ng5 {[%clk 0:07:55]}  Nf8 {[%clk 0:06:10]} 23. Ne4 {[%clk 0:07:55]}  Bg7 {[%clk 0:06:00]} 24. Qe3 {[%clk 0:07:56]}  Qb6 {[%clk 0:05:33]}
25. Qg3 {[%clk 0:07:38]}  b4 {[%clk 0:05:18]} 26. c4 {[%clk 0:07:40]}  Bd7 {[%clk 0:04:45]} 27. c5 {[%clk 0:07:15]}  Qd8 {[%clk 0:04:46]}
28. Qe3 {[%clk 0:06:59]}  e5 {[%clk 0:04:28]} 29. dxe5 {[%clk 0:07:00]}  Bxe5 {[%clk 0:04:29]} 30. Rad1 {[%clk 0:07:01]}  Ne6 {[%clk 0:04:23]}
31. Bc4 {[%clk 0:07:02]}  Qe7 {[%clk 0:04:00]} 32. Rfe1 {[%clk 0:06:50]}  Bc7 {[%clk 0:03:21]} 33. Rxd7 {[%clk 0:06:43]} 1-0